[Event "FIDE World Rapid Chess Championship 2021"]
[White "Narayanan.S.L, "]
[Black "Ponkratov, Pavel"]
[WhiteFideId "5058422"]
[BlackFideId "4157800"]
[WhiteElo "2482"]
[BlackElo "2614"]
[Result "1/2-1/2"]
[Round "12"]
[TimeControl "900+10"]
[Date "2021.12.28"]
[WhiteClock "0:00:13"]
[BlackClock "0:01:35"]

1. e4 {[%clk 0:15:17]}  e6 {[%clk 0:15:19]} 2. d4 {[%clk 0:15:17]}  d5 {[%clk 0:15:19]} 3. Nc3 {[%clk 0:15:17]}  Bb4 {[%clk 0:15:19]} 4. e5 {[%clk 0:15:17]}  c5 {[%clk 0:15:19]} 5. Bd2 {[%clk 0:15:17]}  Ne7 {[%clk 0:15:19]} 6. a3 {[%clk 0:15:17]}  Bxc3 {[%clk 0:15:19]} 7. Bxc3 {[%clk 0:15:17]}  b6 {[%clk 0:15:19]} 8. h4 {[%clk 0:15:17]}  Ba6 {[%clk 0:15:19]} 9. Bxa6 {[%clk 0:15:17]}  Nxa6 {[%clk 0:15:19]} 10. h5 {[%clk 0:14:44]}  h6 {[%clk 0:16:08]} 11. Nf3 {[%clk 0:14:44]}  Qd7 {[%clk 0:16:08]} 12. Qe2 {[%clk 0:14:44]}  Nc7 {[%clk 0:16:08]} 13. a4 {[%clk 0:14:44]}  Nc6 {[%clk 0:14:59]} 14. Rh4 {[%clk 0:13:28]}  Qc8 {[%clk 0:13:27]} 15. Rg4 {[%clk 0:13:15]}  Rg8 {[%clk 0:10:15]} 16. Bd2 {[%clk 0:13:15]}  Ne7 {[%clk 0:10:09]} 17. Be3 {[%clk 0:10:16]}  c4 {[%clk 0:10:09]} 18. c3 {[%clk 0:10:16]}  Qd7 {[%clk 0:10:09]} 19. Qc2 {[%clk 0:10:16]}  O-O-O {[%clk 0:09:38]} 20. Kf1 {[%clk 0:08:54]}  f5 {[%clk 0:08:02]} 21. exf6 {[%clk 0:08:04]}  gxf6 {[%clk 0:08:02]} 22. Rxg8 {[%clk 0:08:04]}  Rxg8 {[%clk 0:08:02]} 23. Bf4 {[%clk 0:08:04]}  Nf5 {[%clk 0:08:19]} 24. Re1 {[%clk 0:06:39]}  Qg7 {[%clk 0:08:19]} 25. g3 {[%clk 0:06:39]}  Qg4 {[%clk 0:08:19]} 26. Ng1 {[%clk 0:06:39]}  e5 {[%clk 0:07:26]} 27. dxe5 {[%clk 0:05:21]}  Ne6 {[%clk 0:07:26]} 28. Qd1 {[%clk 0:05:29]}  Nxf4 {[%clk 0:04:09]} 29. Qxg4 {[%clk 0:05:29]}  Rxg4 {[%clk 0:04:09]} 30. exf6 {[%clk 0:05:29]}  Nd6 {[%clk 0:04:09]} 31. gxf4 {[%clk 0:05:29]}  Rxf4 {[%clk 0:04:09]} 32. Re5 {[%clk 0:05:29]}  Rxf6 {[%clk 0:04:09]} 33. Rxd5 {[%clk 0:05:29]}  Kd7 {[%clk 0:04:09]} 34. Ne2 {[%clk 0:04:26]}  Kc6 {[%clk 0:04:04]} 35. Re5 {[%clk 0:04:26]}  Nb7 {[%clk 0:04:04]} 36. Nd4+ {[%clk 0:04:26]}  Kd6 {[%clk 0:04:04]} 37. Rf5 {[%clk 0:04:26]}  Rxf5 {[%clk 0:04:04]} 38. Nxf5+ {[%clk 0:04:26]}  Ke6 {[%clk 0:04:04]} 39. Nxh6 {[%clk 0:03:42]}  Nc5 {[%clk 0:03:50]} 40. Ng4 {[%clk 0:03:42]}  Nxa4 {[%clk 0:03:50]} 41. h6 {[%clk 0:03:42]}  Kf7 {[%clk 0:03:50]} 42. Ne5+ {[%clk 0:03:42]}  Kf6 {[%clk 0:03:50]} 43. Nxc4 {[%clk 0:03:42]}  b5 {[%clk 0:03:50]} 44. Nd6 {[%clk 0:03:42]}  Nxb2 {[%clk 0:03:50]} 45. Nxb5 {[%clk 0:03:42]}  a6 {[%clk 0:03:50]} 46. Na3 {[%clk 0:03:08]}  Kg6 {[%clk 0:03:43]} 47. c4 {[%clk 0:03:08]}  Na4 {[%clk 0:03:43]} 48. Ke2 {[%clk 0:01:52]}  Kxh6 {[%clk 0:04:00]} 49. Ke3 {[%clk 0:01:52]}  Kg5 {[%clk 0:04:00]} 50. Nc2 {[%clk 0:01:52]}  Kf6 {[%clk 0:04:00]} 51. Kd4 {[%clk 0:01:52]}  Nb6 {[%clk 0:04:00]} 52. c5 {[%clk 0:01:52]}  Nc8 {[%clk 0:04:00]} 53. Kd5 {[%clk 0:01:52]}  a5 {[%clk 0:04:00]} 54. Kc6 {[%clk 0:01:25]}  Ke5 {[%clk 0:02:16]} 55. Kb5 {[%clk 0:01:25]}  Kd5 {[%clk 0:02:16]} 56. Ne3+ {[%clk 0:01:25]}  Kd4 {[%clk 0:02:16]} 57. Nc2+ {[%clk 0:01:25]}  Kd5 {[%clk 0:02:16]} 58. Na3 {[%clk 0:01:25]}  Na7+ {[%clk 0:01:35]} 59. Kb6 {[%clk 0:00:13]}  Nc8+ {[%clk 0:01:35]} 60. Kb5 {[%clk 0:00:13]}  Na7+ {[%clk 0:01:35]} 61. Kb6 {[%clk 0:00:13]}  Nc8+ {[%clk 0:01:35]} 62. Kc7 {[%clk 0:00:13]}  Ne7 {[%clk 0:01:35]} 63. Kb6 {[%clk 0:00:13]}  Nc8+ {[%clk 0:01:35]} 64. Kb5 {[%clk 0:00:13]}  Na7+ {[%clk 0:01:35]} 65. Ka6 {[%clk 0:00:13]}  Nc8 {[%clk 0:01:35]} 1/2-1/2


[Site "http://www.Chess.com"]

[Event "FIDE World Rapid Chess Championship 2021"]
[White "Babazada, Khazar"]
[Black "Efimenko, Zahar"]
[WhiteFideId "13413554"]
[BlackFideId "14107201"]
[WhiteElo "2170"]
[BlackElo "2609"]
[Result "0-1"]
[Round "12"]
[TimeControl "900+10"]
[Date "2021.12.28"]
[WhiteClock "0:03:02"]
[BlackClock "0:01:34"]

1. e4 {[%clk 0:15:19]}  g6 {[%clk 0:15:00]} 2. Nc3 {[%clk 0:15:19]}  Bg7 {[%clk 0:15:00]} 3. d4 {[%clk 0:15:19]}  d6 {[%clk 0:15:00]} 4. Nf3 {[%clk 0:15:19]}  Nf6 {[%clk 0:15:00]} 5. Be2 {[%clk 0:15:19]}  O-O {[%clk 0:15:00]} 6. O-O {[%clk 0:15:19]}  Bg4 {[%clk 0:15:00]} 7. Be3 {[%clk 0:14:25]}  Nc6 {[%clk 0:15:37]} 8. d5 {[%clk 0:14:25]}  Bxf3 {[%clk 0:15:37]} 9. Bxf3 {[%clk 0:14:25]}  Ne5 {[%clk 0:15:37]} 10. Be2 {[%clk 0:14:25]}  c6 {[%clk 0:15:37]} 11. dxc6 {[%clk 0:14:25]}  bxc6 {[%clk 0:15:37]} 12. f4 {[%clk 0:14:25]}  Ned7 {[%clk 0:15:37]} 13. Qd2 {[%clk 0:14:25]}  Rb8 {[%clk 0:15:37]} 14. b3 {[%clk 0:14:25]}  Qa5 {[%clk 0:15:29]} 15. Rad1 {[%clk 0:13:18]}  Rfe8 {[%clk 0:15:29]} 16. Bf3 {[%clk 0:13:02]}  e5 {[%clk 0:13:40]} 17. Na4 {[%clk 0:12:14]}  Qxd2 {[%clk 0:13:40]} 18. Rxd2 {[%clk 0:12:14]}  exf4 {[%clk 0:13:40]} 19. Bxf4 {[%clk 0:12:20]}  Nxe4 {[%clk 0:09:42]} 20. Bxe4 {[%clk 0:12:20]}  Rxe4 {[%clk 0:09:42]} 21. Rxd6 {[%clk 0:12:20]}  Bd4+ {[%clk 0:09:10]} 22. Rxd4 {[%clk 0:11:17]}  Rxd4 {[%clk 0:06:45]} 23. Bxb8 {[%clk 0:11:17]}  Nxb8 {[%clk 0:06:45]} 24. Nc5 {[%clk 0:11:17]}  Nd7 {[%clk 0:06:45]} 25. Nd3 {[%clk 0:11:17]}  f5 {[%clk 0:06:45]} 26. Re1 {[%clk 0:09:36]}  Kf7 {[%clk 0:05:19]} 27. Kf2 {[%clk 0:09:36]}  c5 {[%clk 0:05:19]} 28. Rd1 {[%clk 0:09:36]}  Kf6 {[%clk 0:04:34]} 29. Ke3 {[%clk 0:08:01]}  g5 {[%clk 0:04:34]} 30. Rf1 {[%clk 0:08:01]}  f4+ {[%clk 0:04:34]} 31. Kf3 {[%clk 0:06:39]}  c4 {[%clk 0:04:01]} 32. Nf2 {[%clk 0:06:39]}  Ne5+ {[%clk 0:04:01]} 33. Ke2 {[%clk 0:06:39]}  Ke6 {[%clk 0:02:54]} 34. Rd1 {[%clk 0:05:42]}  Kd5 {[%clk 0:02:54]} 35. Rxd4+ {[%clk 0:04:00]}  Kxd4 {[%clk 0:02:28]} 36. bxc4 {[%clk 0:04:00]}  Nxc4 {[%clk 0:02:28]} 37. Ng4 {[%clk 0:04:00]}  Ne3 {[%clk 0:02:28]} 38. Nf6 {[%clk 0:04:00]}  Nxg2 {[%clk 0:02:28]} 39. Nxh7 {[%clk 0:04:00]}  g4 {[%clk 0:02:28]} 40. Nf6 {[%clk 0:03:11]}  Ne3 {[%clk 0:01:35]} 41. Kf2 {[%clk 0:03:11]}  a5 {[%clk 0:01:35]} 42. a4 {[%clk 0:03:11]}  Kc4 {[%clk 0:01:34]} 43. Nh5 {[%clk 0:03:02]}  Nd5 {[%clk 0:01:34]} 44. Ke2 {[%clk 0:03:02]}  Kc3 {[%clk 0:01:34]} 45. Ng7 {[%clk 0:03:02]}  Kxc2 {[%clk 0:01:34]} 46. Nf5 {[%clk 0:03:02]}  Kc3 {[%clk 0:01:34]} 47. Nd6 {[%clk 0:03:02]}  Kb4 {[%clk 0:01:34]} 48. Kd3 {[%clk 0:03:02]}  Kxa4 {[%clk 0:01:34]} 49. Kd4 {[%clk 0:03:02]} 0-1


[Site "http://www.Chess.com"]

[Event "FIDE World Rapid Chess Championship 2021"]
[White "Sargissian, Gabriel"]
[Black "Theodorou, Nikolas"]
[WhiteFideId "13300881"]
[BlackFideId "4262875"]
[WhiteElo "2693"]
[BlackElo "2559"]
[Result "1-0"]
[Round "12"]
[TimeControl "900+10"]
[Date "2021.12.28"]
[WhiteClock "0:02:47"]
[BlackClock "0:00:13"]

1. d4 {[%clk 0:15:00]}  Nf6 {[%clk 0:15:18]} 2. c4 {[%clk 0:15:19]}  g6 {[%clk 0:15:18]} 3. Nc3 {[%clk 0:15:19]}  Bg7 {[%clk 0:15:18]} 4. e4 {[%clk 0:15:19]}  d6 {[%clk 0:15:18]} 5. Nf3 {[%clk 0:15:19]}  O-O {[%clk 0:15:18]} 6. Be2 {[%clk 0:15:19]}  b6 {[%clk 0:15:18]} 7. O-O {[%clk 0:15:19]}  e5 {[%clk 0:15:18]} 8. Re1 {[%clk 0:15:19]}  Nc6 {[%clk 0:15:18]} 9. d5 {[%clk 0:14:49]}  Ne7 {[%clk 0:16:06]} 10. b4 {[%clk 0:14:49]}  a5 {[%clk 0:16:06]} 11. bxa5 {[%clk 0:14:49]}  Rxa5 {[%clk 0:16:06]} 12. a4 {[%clk 0:14:49]}  c5 {[%clk 0:16:06]} 13. Ra3 {[%clk 0:14:49]}  Bd7 {[%clk 0:16:06]} 14. Bd2 {[%clk 0:15:02]}  Ra6 {[%clk 0:10:37]} 15. Qc2 {[%clk 0:15:02]}  Nh5 {[%clk 0:10:37]} 16. Nb5 {[%clk 0:15:02]}  Nc8 {[%clk 0:10:37]} 17. Bg5 {[%clk 0:14:09]}  Bf6 {[%clk 0:09:31]} 18. Bd2 {[%clk 0:14:09]}  Bg7 {[%clk 0:09:31]} 19. g3 {[%clk 0:12:30]}  h6 {[%clk 0:09:08]} 20. Rea1 {[%clk 0:12:30]}  f5 {[%clk 0:08:49]} 21. Nh4 {[%clk 0:11:27]}  Nf4 {[%clk 0:08:49]} 22. Bxf4 {[%clk 0:11:27]}  exf4 {[%clk 0:08:49]} 23. Nxg6 {[%clk 0:11:27]}  Re8 {[%clk 0:08:49]} 24. Rf1 {[%clk 0:10:41]}  fxe4 {[%clk 0:07:18]} 25. Nxf4 {[%clk 0:08:25]}  Bf5 {[%clk 0:07:18]} 26. Ne6 {[%clk 0:08:25]}  Bxe6 {[%clk 0:07:18]} 27. dxe6 {[%clk 0:08:25]}  Rxe6 {[%clk 0:07:18]} 28. Bg4 {[%clk 0:08:25]}  Re5 {[%clk 0:04:26]} 29. Re3 {[%clk 0:08:05]}  Na7 {[%clk 0:04:26]} 30. Rxe4 {[%clk 0:08:05]}  Nxb5 {[%clk 0:04:26]} 31. axb5 {[%clk 0:06:48]}  Rxe4 {[%clk 0:03:47]} 32. Qxe4 {[%clk 0:06:48]}  Ra2 {[%clk 0:03:47]} 33. Re1 {[%clk 0:06:48]}  Qf6 {[%clk 0:03:20]} 34. Re2 {[%clk 0:04:59]}  Rxe2 {[%clk 0:03:20]} 35. Qxe2 {[%clk 0:04:59]}  Qa1+ {[%clk 0:03:20]} 36. Kg2 {[%clk 0:04:59]}  Kf8 {[%clk 0:03:20]} 37. Qf3+ {[%clk 0:04:59]}  Bf6 {[%clk 0:03:20]} 38. Qb7 {[%clk 0:04:37]}  Bd8 {[%clk 0:02:29]} 39. Bf3 {[%clk 0:04:37]}  Qf6 {[%clk 0:02:29]} 40. Bd5 {[%clk 0:04:37]}  Qf5 {[%clk 0:02:29]} 41. Qa8 {[%clk 0:04:37]}  Ke7 {[%clk 0:02:29]} 42. Qa1 {[%clk 0:04:37]}  Qg6 {[%clk 0:02:29]} 43. Qh8 {[%clk 0:04:37]}  Kd7 {[%clk 0:02:29]} 44. Qf8 {[%clk 0:03:58]}  Kc8 {[%clk 0:02:10]} 45. Bf3 {[%clk 0:03:58]}  Qe6 {[%clk 0:01:17]} 46. Qf4 {[%clk 0:03:58]}  Kc7 {[%clk 0:01:17]} 47. h4 {[%clk 0:03:58]}  Be7 {[%clk 0:01:17]} 48. Bd5 {[%clk 0:03:58]}  Qg6 {[%clk 0:01:17]} 49. Bf3 {[%clk 0:03:58]}  Qe6 {[%clk 0:01:17]} 50. Qc1 {[%clk 0:03:58]}  Kd8 {[%clk 0:01:17]} 51. Bc6 {[%clk 0:03:58]}  Bf8 {[%clk 0:01:17]} 52. Qa1 {[%clk 0:02:47]}  Ke7 {[%clk 0:00:13]} 53. Qa7+ {[%clk 0:02:47]}  Kf6 {[%clk 0:00:13]} 54. Bd5 {[%clk 0:02:47]}  Qe7 {[%clk 0:00:13]} 55. Qxb6 {[%clk 0:02:47]}  Kf5 {[%clk 0:00:13]} 56. Qa6 {[%clk 0:02:47]}  Bg7 {[%clk 0:00:13]} 57. Qc8+ {[%clk 0:02:47]}  Ke5 {[%clk 0:00:13]} 58. Qg4 {[%clk 0:02:47]} 1-0


[Site "http://www.Chess.com"]

[Event "FIDE World Rapid Chess Championship 2021"]
[White "Ghaem Maghami, Ehsan"]
[Black "Demchenko, Anton"]
[WhiteFideId "12500739"]
[BlackFideId "4160258"]
[WhiteElo "2553"]
[BlackElo "2666"]
[Result "1-0"]
[Round "12"]
[TimeControl "900+10"]
[Date "2021.12.28"]
[WhiteClock "0:00:20"]
[BlackClock "0:00:11"]

1. d4 {[%clk 0:15:18]}  Nf6 {[%clk 0:15:19]} 2. c4 {[%clk 0:15:18]}  g6 {[%clk 0:15:19]} 3. g3 {[%clk 0:15:18]}  Bg7 {[%clk 0:15:19]} 4. Bg2 {[%clk 0:15:18]}  O-O {[%clk 0:15:19]} 5. Nc3 {[%clk 0:15:18]}  d6 {[%clk 0:15:19]} 6. e3 {[%clk 0:15:18]}  e5 {[%clk 0:15:19]} 7. Nge2 {[%clk 0:15:18]}  Nbd7 {[%clk 0:15:19]} 8. b3 {[%clk 0:15:40]}  Re8 {[%clk 0:14:49]} 9. h3 {[%clk 0:15:40]}  c6 {[%clk 0:14:49]} 10. O-O {[%clk 0:15:40]}  a6 {[%clk 0:14:49]} 11. Ba3 {[%clk 0:15:40]}  exd4 {[%clk 0:14:49]} 12. exd4 {[%clk 0:15:05]}  Nb6 {[%clk 0:12:54]} 13. Bc1 {[%clk 0:15:05]}  d5 {[%clk 0:12:10]} 14. c5 {[%clk 0:13:54]}  Nbd7 {[%clk 0:12:10]} 15. Na4 {[%clk 0:13:54]}  Ne4 {[%clk 0:12:10]} 16. Be3 {[%clk 0:13:21]}  b5 {[%clk 0:10:20]} 17. cxb6 {[%clk 0:13:21]}  Nxb6 {[%clk 0:10:20]} 18. Nac3 {[%clk 0:11:57]}  a5 {[%clk 0:09:46]} 19. Rc1 {[%clk 0:10:38]}  Nd6 {[%clk 0:08:03]} 20. Qd2 {[%clk 0:10:09]}  a4 {[%clk 0:07:38]} 21. g4 {[%clk 0:10:09]}  axb3 {[%clk 0:06:34]} 22. axb3 {[%clk 0:07:41]}  Ba6 {[%clk 0:06:34]} 23. Rfe1 {[%clk 0:07:41]}  Bxe2 {[%clk 0:06:34]} 24. Nxe2 {[%clk 0:07:41]}  Rc8 {[%clk 0:06:34]} 25. Rc2 {[%clk 0:07:41]}  f5 {[%clk 0:05:24]} 26. Rec1 {[%clk 0:06:09]}  fxg4 {[%clk 0:02:46]} 27. hxg4 {[%clk 0:05:32]}  Ne4 {[%clk 0:01:29]} 28. Qd3 {[%clk 0:05:32]}  Qd7 {[%clk 0:00:41]} 29. Qa6 {[%clk 0:03:28]}  Nc4 {[%clk 0:00:41]} 30. bxc4 {[%clk 0:03:28]}  Ra8 {[%clk 0:00:41]} 31. Qxa8 {[%clk 0:01:01]}  Rxa8 {[%clk 0:00:50]} 32. cxd5 {[%clk 0:01:01]}  cxd5 {[%clk 0:00:50]} 33. Nf4 {[%clk 0:01:01]}  Nf6 {[%clk 0:00:50]} 34. g5 {[%clk 0:00:36]}  Ne4 {[%clk 0:00:30]} 35. Rc5 {[%clk 0:00:36]}  Nxc5 {[%clk 0:00:30]} 36. Bxd5+ {[%clk 0:00:36]}  Kh8 {[%clk 0:00:30]} 37. Bxa8 {[%clk 0:00:36]}  Nb3 {[%clk 0:00:30]} 38. Rb1 {[%clk 0:00:36]}  Qa7 {[%clk 0:00:30]} 39. Bd5 {[%clk 0:00:36]}  Na5 {[%clk 0:00:30]} 40. Ne6 {[%clk 0:00:36]}  h5 {[%clk 0:00:30]} 41. gxh6 {[%clk 0:00:36]}  Bf6 {[%clk 0:00:30]} 42. Rb5 {[%clk 0:00:36]}  g5 {[%clk 0:00:30]} 43. Be4 {[%clk 0:00:36]}  Be7 {[%clk 0:00:30]} 44. Nxg5 {[%clk 0:00:36]}  Bxg5 {[%clk 0:00:11]} 45. Bxg5 {[%clk 0:00:20]}  Nc6 {[%clk 0:00:11]} 46. Bf6+ {[%clk 0:00:20]}  Kg8 {[%clk 0:00:11]} 47. h7+ {[%clk 0:00:20]} 1-0


[Site "http://www.Chess.com"]

[Event "FIDE World Rapid Chess Championship 2021"]
[White "Tari, Aryan"]
[Black "Antipov, Mikhail Al."]
[WhiteFideId "1510045"]
[BlackFideId "4107012"]
[WhiteElo "2542"]
[BlackElo "2644"]
[Result "1-0"]
[Round "12"]
[TimeControl "900+10"]
[Date "2021.12.28"]
[WhiteClock "0:02:43"]
[BlackClock "0:00:09"]

1. e4 {[%clk 0:15:00]}  e5 {[%clk 0:15:20]} 2. Nf3 {[%clk 0:15:26]}  Nc6 {[%clk 0:15:20]} 3. Bb5 {[%clk 0:15:26]}  Nf6 {[%clk 0:15:20]} 4. d3 {[%clk 0:15:26]}  Ne7 {[%clk 0:15:20]} 5. O-O {[%clk 0:15:26]}  c6 {[%clk 0:15:20]} 6. Bc4 {[%clk 0:15:26]}  Ng6 {[%clk 0:15:20]} 7. Bb3 {[%clk 0:14:28]}  Be7 {[%clk 0:15:56]} 8. Re1 {[%clk 0:14:28]}  O-O {[%clk 0:15:56]} 9. Nbd2 {[%clk 0:14:28]}  Qc7 {[%clk 0:15:56]} 10. Nc4 {[%clk 0:14:28]}  d6 {[%clk 0:15:56]} 11. Ne3 {[%clk 0:13:48]}  h6 {[%clk 0:13:57]} 12. Nf5 {[%clk 0:13:48]}  Kh7 {[%clk 0:13:57]} 13. h3 {[%clk 0:13:48]}  Be6 {[%clk 0:13:19]} 14. c3 {[%clk 0:12:44]}  Qd7 {[%clk 0:12:10]} 15. g4 {[%clk 0:11:39]}  Ng8 {[%clk 0:10:58]} 16. d4 {[%clk 0:10:45]}  exd4 {[%clk 0:08:48]} 17. Qxd4 {[%clk 0:09:48]}  Bf6 {[%clk 0:06:50]} 18. Qd3 {[%clk 0:09:48]}  Rad8 {[%clk 0:06:55]} 19. Be3 {[%clk 0:06:21]}  b6 {[%clk 0:06:55]} 20. Rad1 {[%clk 0:06:21]}  Bxb3 {[%clk 0:05:02]} 21. axb3 {[%clk 0:05:23]}  Qe6 {[%clk 0:05:02]} 22. N3d4 {[%clk 0:05:23]}  Qc8 {[%clk 0:05:02]} 23. f4 {[%clk 0:05:23]}  N8e7 {[%clk 0:05:02]} 24. Nxe7 {[%clk 0:03:58]}  Bxe7 {[%clk 0:00:54]} 25. Nf5 {[%clk 0:03:58]}  Rfe8 {[%clk 0:00:54]} 26. Qc4 {[%clk 0:03:58]}  Kg8 {[%clk 0:00:54]} 27. Qf1 {[%clk 0:02:40]}  Nh4 {[%clk 0:00:28]} 28. Ng3 {[%clk 0:02:40]}  Ng6 {[%clk 0:00:28]} 29. Nf5 {[%clk 0:02:40]}  Bf8 {[%clk 0:00:28]} 30. Bd2 {[%clk 0:02:40]}  Qe6 {[%clk 0:00:28]} 31. c4 {[%clk 0:02:40]}  f6 {[%clk 0:00:28]} 32. Bc3 {[%clk 0:02:40]}  Qf7 {[%clk 0:00:28]} 33. Qf3 {[%clk 0:02:40]}  a6 {[%clk 0:00:28]} 34. h4 {[%clk 0:02:40]}  Qc7 {[%clk 0:00:00]} 35. h5 {[%clk 0:02:43]}  Nh8 {[%clk 0:00:00]} 36. Re2 {[%clk 0:02:43]}  Nf7 {[%clk 0:00:09]} 37. Red2 {[%clk 0:02:43]}  Re6 {[%clk 0:00:09]} 38. Nh4 {[%clk 0:02:43]}  Rde8 {[%clk 0:00:09]} 39. Re2 {[%clk 0:02:43]}  b5 {[%clk 0:00:09]} 40. Ng6 {[%clk 0:02:43]}  b4 {[%clk 0:00:09]} 41. Bd4 {[%clk 0:02:43]}  d5 {[%clk 0:00:09]} 42. e5 {[%clk 0:02:43]}  fxe5 {[%clk 0:00:09]} 43. fxe5 {[%clk 0:02:43]}  dxc4 {[%clk 0:00:09]} 44. Rf1 {[%clk 0:02:43]}  Rd8 {[%clk 0:00:09]} 45. Ref2 {[%clk 0:02:43]}  Rd7 {[%clk 0:00:09]} 46. bxc4 {[%clk 0:02:43]}  Qd8 {[%clk 0:00:09]} 47. Qf5 {[%clk 0:02:43]}  Qe8 {[%clk 0:00:09]} 48. Nxf8 {[%clk 0:02:43]}  Kxf8 {[%clk 0:00:09]} 49. Qh7 {[%clk 0:02:43]}  Rxd4 {[%clk 0:00:09]} 50. Qh8+ {[%clk 0:02:43]}  Ke7 {[%clk 0:00:09]} 51. Qxg7 {[%clk 0:02:43]}  Kd8 {[%clk 0:00:09]} 52. Rxf7 {[%clk 0:02:43]} 1-0


[Site "http://www.Chess.com"]

[Event "FIDE World Rapid Chess Championship 2021"]
[White "Donchenko, Alexander"]
[Black "Riazantsev, Alexander"]
[WhiteFideId "24603295"]
[BlackFideId "4125029"]
[WhiteElo "2535"]
[BlackElo "2632"]
[Result "1-0"]
[Round "12"]
[TimeControl "900+10"]
[Date "2021.12.28"]
[WhiteClock "0:01:27"]
[BlackClock "0:00:00"]

1. d4 {[%clk 0:15:00]}  Nf6 {[%clk 0:15:19]} 2. c4 {[%clk 0:15:18]}  c5 {[%clk 0:15:19]} 3. d5 {[%clk 0:15:26]}  b5 {[%clk 0:15:19]} 4. cxb5 {[%clk 0:15:26]}  a6 {[%clk 0:15:19]} 5. bxa6 {[%clk 0:15:26]}  e6 {[%clk 0:15:19]} 6. Nc3 {[%clk 0:15:26]}  exd5 {[%clk 0:15:19]} 7. Nxd5 {[%clk 0:15:26]}  Be7 {[%clk 0:15:19]} 8. e3 {[%clk 0:14:17]}  O-O {[%clk 0:15:29]} 9. Nf3 {[%clk 0:14:17]}  Nc6 {[%clk 0:15:29]} 10. Be2 {[%clk 0:14:17]}  Bxa6 {[%clk 0:15:29]} 11. Nxe7+ {[%clk 0:12:52]}  Qxe7 {[%clk 0:14:56]} 12. Bd2 {[%clk 0:12:52]}  Bxe2 {[%clk 0:13:43]} 13. Qxe2 {[%clk 0:11:14]}  Rfb8 {[%clk 0:13:43]} 14. Bc3 {[%clk 0:11:14]}  d5 {[%clk 0:13:43]} 15. a3 {[%clk 0:10:24]}  Ne4 {[%clk 0:08:34]} 16. O-O {[%clk 0:08:26]}  Rb3 {[%clk 0:08:34]} 17. Qd1 {[%clk 0:08:26]}  Qb7 {[%clk 0:08:34]} 18. Qxd5 {[%clk 0:08:26]}  Nd4 {[%clk 0:08:34]} 19. Qxb7 {[%clk 0:07:58]}  Ne2+ {[%clk 0:07:11]} 20. Kh1 {[%clk 0:07:58]}  Rxb7 {[%clk 0:07:11]} 21. Be5 {[%clk 0:07:58]}  f6 {[%clk 0:07:11]} 22. Rae1 {[%clk 0:07:58]}  fxe5 {[%clk 0:07:31]} 23. Rxe2 {[%clk 0:05:50]}  Rab8 {[%clk 0:07:31]} 24. Nxe5 {[%clk 0:05:50]}  Rxb2 {[%clk 0:07:31]} 25. Rxb2 {[%clk 0:05:50]}  Rxb2 {[%clk 0:07:31]} 26. f3 {[%clk 0:05:50]}  Nd2 {[%clk 0:07:31]} 27. Rc1 {[%clk 0:05:50]}  c4 {[%clk 0:03:19]} 28. h4 {[%clk 0:05:44]}  Rb5 {[%clk 0:03:19]} 29. f4 {[%clk 0:05:44]}  Rb3 {[%clk 0:02:56]} 30. Nxc4 {[%clk 0:04:08]}  Nxc4 {[%clk 0:02:56]} 31. Rxc4 {[%clk 0:04:08]}  Rxe3 {[%clk 0:02:56]} 32. Ra4 {[%clk 0:04:08]}  Kf7 {[%clk 0:01:14]} 33. Kh2 {[%clk 0:03:31]}  h5 {[%clk 0:00:10]} 34. Ra5 {[%clk 0:02:02]}  Kg6 {[%clk 0:00:10]} 35. a4 {[%clk 0:02:02]}  Kh6 {[%clk 0:00:00]} 36. Re5 {[%clk 0:01:27]}  Ra3 {[%clk 0:00:00]} 37. a5 {[%clk 0:01:27]}  Ra4 {[%clk 0:00:00]} 38. g3 {[%clk 0:01:27]}  Ra2+ {[%clk 0:00:00]} 39. Kg1 {[%clk 0:01:27]}  Ra3 {[%clk 0:00:00]} 40. Kf2 {[%clk 0:01:27]}  Ra2+ {[%clk 0:00:00]} 41. Ke1 {[%clk 0:01:27]}  Ra3 {[%clk 0:00:00]} 42. Rg5 {[%clk 0:01:27]}  Rd3 {[%clk 0:00:00]} 43. Ke2 {[%clk 0:01:27]}  Rd4 {[%clk 0:00:00]} 44. Ke3 {[%clk 0:01:27]}  Rd1 {[%clk 0:00:00]} 45. Ke4 {[%clk 0:01:27]}  Rd2 {[%clk 0:00:00]} 46. Rd5 {[%clk 0:01:27]}  Ra2 {[%clk 0:00:00]} 47. Kd4 {[%clk 0:01:27]}  Ra3 {[%clk 0:00:00]} 48. Rg5 {[%clk 0:01:27]}  Ra4+ {[%clk 0:00:00]} 49. Kc3 {[%clk 0:01:27]}  Ra1 {[%clk 0:00:00]} 50. Kb4 {[%clk 0:01:27]}  Rb1+ {[%clk 0:00:00]} 51. Kc5 {[%clk 0:01:27]} 1-0


[Site "http://www.Chess.com"]

[Event "FIDE World Rapid Chess Championship 2021"]
[White "Czarnota, Pawel"]
[Black "Predke, Alexandr"]
[WhiteFideId "1121219"]
[BlackFideId "24107581"]
[WhiteElo "2511"]
[BlackElo "2630"]
[Result "1-0"]
[Round "12"]
[TimeControl "900+10"]
[Date "2021.12.28"]
[WhiteClock "0:06:13"]
[BlackClock "0:03:17"]

1. e4 {[%clk 0:15:17]}  e5 {[%clk 0:15:06]} 2. Nf3 {[%clk 0:15:17]}  Nc6 {[%clk 0:15:18]} 3. Bb5 {[%clk 0:15:17]}  a6 {[%clk 0:15:18]} 4. Ba4 {[%clk 0:15:17]}  Nf6 {[%clk 0:15:18]} 5. O-O {[%clk 0:15:17]}  Be7 {[%clk 0:15:18]} 6. Re1 {[%clk 0:15:17]}  b5 {[%clk 0:15:18]} 7. Bb3 {[%clk 0:15:17]}  Bb7 {[%clk 0:15:18]} 8. a4 {[%clk 0:14:36]}  O-O {[%clk 0:15:52]} 9. d3 {[%clk 0:14:36]}  d6 {[%clk 0:15:52]} 10. Bg5 {[%clk 0:14:36]}  Nd7 {[%clk 0:15:52]} 11. Be3 {[%clk 0:13:02]}  Na5 {[%clk 0:14:55]} 12. Ba2 {[%clk 0:13:02]}  bxa4 {[%clk 0:14:55]} 13. Nc3 {[%clk 0:13:02]}  Nb6 {[%clk 0:14:55]} 14. Bxb6 {[%clk 0:13:02]}  cxb6 {[%clk 0:14:55]} 15. Nxa4 {[%clk 0:13:02]}  Nc6 {[%clk 0:14:23]} 16. Bd5 {[%clk 0:11:52]}  b5 {[%clk 0:14:23]} 17. Nc3 {[%clk 0:11:52]}  Kh8 {[%clk 0:14:23]} 18. d4 {[%clk 0:11:40]}  Bf6 {[%clk 0:12:59]} 19. dxe5 {[%clk 0:11:40]}  dxe5 {[%clk 0:12:59]} 20. Bb3 {[%clk 0:09:08]}  g6 {[%clk 0:12:30]} 21. Qxd8 {[%clk 0:09:08]}  Raxd8 {[%clk 0:12:30]} 22. Nd5 {[%clk 0:09:08]}  Bg7 {[%clk 0:12:30]} 23. c3 {[%clk 0:09:08]}  Rd6 {[%clk 0:11:12]} 24. Nc7 {[%clk 0:08:40]}  Nb8 {[%clk 0:11:12]} 25. Red1 {[%clk 0:08:40]}  Rc6 {[%clk 0:11:12]} 26. Nd5 {[%clk 0:07:21]}  h6 {[%clk 0:10:26]} 27. h4 {[%clk 0:07:21]}  Rc5 {[%clk 0:10:16]} 28. h5 {[%clk 0:06:55]}  g5 {[%clk 0:10:16]} 29. Nh2 {[%clk 0:06:55]}  Nc6 {[%clk 0:06:21]} 30. Ng4 {[%clk 0:06:50]}  a5 {[%clk 0:06:21]} 31. Nge3 {[%clk 0:06:50]}  a4 {[%clk 0:06:21]} 32. Ba2 {[%clk 0:06:50]}  Nd8 {[%clk 0:04:19]} 33. Nf5 {[%clk 0:06:53]}  Ne6 {[%clk 0:04:19]} 34. Nd6 {[%clk 0:06:53]}  Bc6 {[%clk 0:04:19]} 35. Ne7 {[%clk 0:06:53]}  Bd7 {[%clk 0:04:19]} 36. Nxf7+ {[%clk 0:06:53]}  Rxf7 {[%clk 0:03:17]} 37. Rxd7 {[%clk 0:06:13]} 1-0


[Site "http://www.Chess.com"]